[Event "Live Chess"]
[Site "Chess.com"]
[Date "2023.09.16"]
[Round "-"]
[White "lgomessc"]
[Black "CauaLopes12"]
[Result "0-1"]
[WhiteElo "1134"]
[BlackElo "1332"]
[TimeControl "900+5"]
[EndTime "7:45:26 PDT"]
[Termination "CauaLopes12 venceu por xeque-mate"]

1. e4 {[%clk 0:15:02]} 1... e5 {[%clk 0:15:03.1]} 2. Nf3 {[%clk 0:15:05.8]} 2...
Nf6 {[%clk 0:15:05.6]} 3. Nc3 {[%clk 0:14:49.5]} 3... Nc6 {[%clk 0:15:07.4]} 4.
Bc4 {[%clk 0:14:52.7]} 4... Nxe4 {[%clk 0:15:09.4]} 5. Nxe4 {[%clk 0:14:52]}
5... d5 {[%clk 0:15:13.8]} 6. Bxd5 {[%clk 0:14:49.6]} 6... Qxd5 {[%clk
0:15:18.3]} 7. Nc3 {[%clk 0:14:50.3]} 7... Qd6 {[%clk 0:15:20.8]} 8. Nb5 {[%clk
0:14:41.6]} 8... Qd8 {[%clk 0:15:20.6]} 9. d3 {[%clk 0:14:27.6]} 9... Bg4 {[%clk
0:15:18.3]} 10. Bg5 {[%clk 0:14:24]} 10... Bxf3 {[%clk 0:14:55.3]} 11. Qxf3
{[%clk 0:14:15.5]} 11... Qd7 {[%clk 0:14:45.1]} 12. O-O {[%clk 0:13:46]} 12...
Be7 {[%clk 0:14:42.6]} 13. Bxe7 {[%clk 0:13:49.3]} 13... Qxe7 {[%clk 0:14:43.9]}
14. Rfe1 {[%clk 0:13:43.8]} 14... O-O {[%clk 0:14:47]} 15. d4 {[%clk 0:13:41.9]}
15... Qb4 {[%clk 0:14:28.2]} 16. Qb3 {[%clk 0:13:08]} 16... Qxb3 {[%clk
0:14:26.3]} 17. axb3 {[%clk 0:13:09.2]} 17... Nxd4 {[%clk 0:14:23.5]} 18. Nxd4
{[%clk 0:12:42.6]} 18... exd4 {[%clk 0:14:24.5]} 19. Re4 {[%clk 0:12:45.7]}
19... c5 {[%clk 0:14:25.8]} 20. Ra5 {[%clk 0:12:41.2]} 20... b6 {[%clk
0:14:27.7]} 21. Ra1 {[%clk 0:12:40]} 21... a5 {[%clk 0:14:25.6]} 22. Re7 {[%clk
0:12:16.7]} 22... Rab8 {[%clk 0:14:27.4]} 23. c4 {[%clk 0:11:47.6]} 23... dxc3
{[%clk 0:14:27.3]} 24. bxc3 {[%clk 0:11:50.5]} 24... Rfe8 {[%clk 0:14:31.4]} 25.
Rxe8+ {[%clk 0:11:21.4]} 25... Rxe8 {[%clk 0:14:33.6]} 26. h4 {[%clk 0:11:23.7]}
26... Rd8 {[%clk 0:14:30.6]} 27. c4 {[%clk 0:11:04.1]} 27... Rd3 {[%clk
0:14:24.6]} 28. Re1 {[%clk 0:11:01.2]} 28... Kf8 {[%clk 0:14:25.7]} 29. Re3
{[%clk 0:10:57.1]} 29... Rd4 {[%clk 0:14:26]} 30. g3 {[%clk 0:10:48.4]} 30... f6
{[%clk 0:14:25.1]} 31. Kg2 {[%clk 0:10:40.9]} 31... Kf7 {[%clk 0:14:28.1]} 32.
h5 {[%clk 0:10:42.2]} 32... g6 {[%clk 0:14:30.1]} 33. hxg6+ {[%clk 0:10:42.8]}
33... hxg6 {[%clk 0:14:32.6]} 34. f4 {[%clk 0:10:43.3]} 34... f5 {[%clk
0:14:29.9]} 35. Kh3 {[%clk 0:10:41.2]} 35... Kf6 {[%clk 0:14:23.1]} 36. Rf3
{[%clk 0:10:37]} 36... g5 {[%clk 0:14:15.8]} 37. fxg5+ {[%clk 0:10:38.3]} 37...
Kxg5 {[%clk 0:14:19.6]} 38. Kg2 {[%clk 0:10:28.8]} 38... Rd2+ {[%clk 0:14:20.5]}
39. Rf2 {[%clk 0:10:23.5]} 39... Rxf2+ {[%clk 0:14:17.3]} 40. Kxf2 {[%clk
0:10:26]} 40... Kg4 {[%clk 0:14:21.8]} 41. Kg2 {[%clk 0:10:21.7]} 41... f4
{[%clk 0:14:04.3]} 42. gxf4 {[%clk 0:10:10.2]} 42... Kxf4 {[%clk 0:14:08.8]} 43.
Kf2 {[%clk 0:10:14.7]} 43... Ke4 {[%clk 0:14:13.4]} 44. Ke2 {[%clk 0:10:18.5]}
44... Kd4 {[%clk 0:14:15.9]} 45. Kd2 {[%clk 0:10:21.1]} 45... a4 {[%clk
0:14:01.2]} 46. Kc2 {[%clk 0:10:18.2]} 46... axb3+ {[%clk 0:14:03.3]} 47. Kxb3
{[%clk 0:10:21.9]} 47... Kd3 {[%clk 0:14:07.7]} 48. Ka4 {[%clk 0:10:21.2]} 48...
Kxc4 {[%clk 0:14:10.3]} 49. Ka3 {[%clk 0:10:25.7]} 49... b5 {[%clk 0:14:13.1]}
50. Kb2 {[%clk 0:10:29.7]} 50... Kb4 {[%clk 0:14:16.8]} 51. Kc2 {[%clk
0:10:33.5]} 51... c4 {[%clk 0:14:21.2]} 52. Kb2 {[%clk 0:10:37.3]} 52... c3+
{[%clk 0:14:24.3]} 53. Kc2 {[%clk 0:10:32.4]} 53... Kc4 {[%clk 0:14:28.3]} 54.
Kc1 {[%clk 0:10:35.2]} 54... Kb3 {[%clk 0:14:27.1]} 55. Kb1 {[%clk 0:10:38.5]}
55... c2+ {[%clk 0:14:30.7]} 56. Kc1 {[%clk 0:10:41.1]} 56... b4 {[%clk
0:14:34.7]} 57. Kd2 {[%clk 0:10:44.7]} 57... Kb2 {[%clk 0:14:39.1]} 58. Kd3
{[%clk 0:10:48.3]} 58... c1=Q {[%clk 0:14:43.2]} 59. Kd4 {[%clk 0:10:52]} 59...
Qc3+ {[%clk 0:14:46.5]} 60. Kd5 {[%clk 0:10:54.5]} 60... b3 {[%clk 0:14:48.6]}
61. Ke4 {[%clk 0:10:57.8]} 61... Ka2 {[%clk 0:14:52.9]} 62. Kd5 {[%clk
0:11:01.8]} 62... b2 {[%clk 0:14:57.1]} 63. Kd6 {[%clk 0:11:00.9]} 63... b1=Q
{[%clk 0:15:01.2]} 64. Ke6 {[%clk 0:11:03.9]} 64... Qb5 {[%clk 0:15:04.5]} 65.
Kd6 {[%clk 0:11:07.7]} 65... Qcc6+ {[%clk 0:15:08.5]} 66. Ke7 {[%clk 0:11:11.8]}
66... Qbb7+ {[%clk 0:15:13]} 67. Kf8 {[%clk 0:11:15.9]} 67... Qcc8# {[%clk
0:15:17.5]} 0-1

[Event "Live Chess"]
[Site "Chess.com"]
[Date "2023.09.16"]
[Round "-"]
[White "isanamie12"]
[Black "VitorEMS"]
[Result "1-0"]
[WhiteElo "809"]
[BlackElo "703"]
[TimeControl "900+5"]
[EndTime "7:46:10 PDT"]
[Termination "isanamie12 venceu por xeque-mate"]

1. d4 {[%clk 0:15:01]} 1... d5 {[%clk 0:15:00.5]} 2. c4 {[%clk 0:15:04]} 2...
dxc4 {[%clk 0:14:46.1]} 3. e4 {[%clk 0:15:06.5]} 3... b5 {[%clk 0:14:42]} 4. a4
{[%clk 0:15:08.3]} 4... Bd7 {[%clk 0:14:30.3]} 5. b3 {[%clk 0:14:57.4]} 5...
cxb3 {[%clk 0:14:29.7]} 6. axb5 {[%clk 0:14:58.9]} 6... e6 {[%clk 0:14:17.6]} 7.
Qxb3 {[%clk 0:14:58.3]} 7... Qh4 {[%clk 0:14:05.8]} 8. Nf3 {[%clk 0:14:53.8]}
8... Qxe4+ {[%clk 0:14:06]} 9. Be2 {[%clk 0:14:58.1]} 9... a6 {[%clk 0:13:54.7]}
10. Nc3 {[%clk 0:14:48.4]} 10... Qb7 {[%clk 0:13:41.3]} 11. Ne5 {[%clk
0:14:48.5]} 11... Bd6 {[%clk 0:13:39.3]} 12. O-O {[%clk 0:14:50.3]} 12... axb5
{[%clk 0:13:38.8]} 13. Bf3 {[%clk 0:14:53.6]} 13... Qb6 {[%clk 0:13:31.8]} 14.
Rxa8 {[%clk 0:14:54.9]} 14... b4 {[%clk 0:13:27.3]} 15. Na4 {[%clk 0:14:41.1]}
15... Qxd4 {[%clk 0:13:22.9]} 16. Nxd7 {[%clk 0:14:38.5]} 16... Kxd7 {[%clk
0:13:09.8]} 17. Rxb8 {[%clk 0:14:41.4]} 17... c5 {[%clk 0:13:09.7]} 18. Nb6+
{[%clk 0:14:41.1]} 18... Kc7 {[%clk 0:13:09.8]} 19. Ra8 {[%clk 0:14:13.5]} 19...
Kxb6 {[%clk 0:12:52.8]} 20. Qa4 {[%clk 0:14:15.1]} 20... Qc4 {[%clk 0:12:43.5]}
21. Qc6# {[%clk 0:14:16]} 1-0

[Event "Live Chess"]
[Site "Chess.com"]
[Date "2023.09.16"]
[Round "-"]
[White "Alplee"]
[Black "Sabadin21"]
[Result "1-0"]
[WhiteElo "1949"]
[BlackElo "882"]
[TimeControl "900+5"]
[EndTime "7:46:41 PDT"]
[Termination "Alplee venceu por desistência"]

1. d4 {[%clk 0:15:03.7]} 1... d5 {[%clk 0:15:03.5]} 2. c4 {[%clk 0:15:07.7]}
2... dxc4 {[%clk 0:15:06.1]} 3. Nf3 {[%clk 0:15:11.8]} 3... Nc6 {[%clk
0:15:07.9]} 4. e3 {[%clk 0:15:15.5]} 4... Nf6 {[%clk 0:15:09.7]} 5. Bxc4 {[%clk
0:15:19]} 5... e6 {[%clk 0:15:11.9]} 6. Nc3 {[%clk 0:15:22.9]} 6... Bd7 {[%clk
0:15:13.6]} 7. O-O {[%clk 0:15:26.7]} 7... Bd6 {[%clk 0:15:17.2]} 8. Nb5 {[%clk
0:15:24.5]} 8... O-O {[%clk 0:15:20.5]} 9. Nxd6 {[%clk 0:15:27.7]} 9... cxd6
{[%clk 0:15:23.4]} 10. b3 {[%clk 0:15:26.8]} 10... d5 {[%clk 0:15:27.3]} 11. Bd3
{[%clk 0:15:30]} 11... b6 {[%clk 0:15:28.5]} 12. Ba3 {[%clk 0:15:29.1]} 12...
Re8 {[%clk 0:15:24.6]} 13. Rc1 {[%clk 0:15:31.7]} 13... Ne7 {[%clk 0:15:26.3]}
14. Qe2 {[%clk 0:15:15.8]} 14... Rc8 {[%clk 0:15:27.2]} 15. Rc2 {[%clk
0:15:15.3]} 15... Rxc2 {[%clk 0:15:30.4]} 16. Qxc2 {[%clk 0:15:18.8]} 16... Ng6
{[%clk 0:15:21.4]} 17. Bxg6 {[%clk 0:15:18.1]} 17... hxg6 {[%clk 0:15:23]} 18.
Rc1 {[%clk 0:15:21.4]} 18... Qc8 {[%clk 0:15:22.1]} 19. Ne5 {[%clk 0:15:23.1]}
19... Qxc2 {[%clk 0:15:23.1]} 20. Rxc2 {[%clk 0:15:24.6]} 20... Rc8 {[%clk
0:15:25.8]} 21. Rxc8+ {[%clk 0:15:00.1]} 21... Bxc8 {[%clk 0:15:28.4]} 22. Nc6
{[%clk 0:15:04.5]} 22... Ne4 {[%clk 0:15:25.4]} 23. Ne7+ {[%clk 0:15:06.2]}
23... Kf8 {[%clk 0:15:27.2]} 24. Nxc8+ {[%clk 0:15:09.6]} 24... Ke8 {[%clk
0:15:29.8]} 25. Nxa7 {[%clk 0:15:13.2]} 25... Nc3 {[%clk 0:15:32.9]} 26. Kf1
{[%clk 0:15:06]} 26... Nxa2 {[%clk 0:15:36.2]} 27. Ke2 {[%clk 0:15:08]} 27...
Nc3+ {[%clk 0:15:40.3]} 28. Kd3 {[%clk 0:15:10.5]} 28... Nb1 {[%clk 0:15:43.2]}
29. Bb2 {[%clk 0:15:11.9]} 1-0

[Event "Live Chess"]
[Site "Chess.com"]
[Date "2023.09.16"]
[Round "-"]
[White "DaviFuzatto"]
[Black "SaladaChess"]
[Result "1/2-1/2"]
[WhiteElo "1363"]
[BlackElo "1147"]
[TimeControl "900+5"]
[EndTime "7:46:56 PDT"]
[Termination "Partida empatada por acordo"]

1. e4 {[%clk 0:15:01.4]} 1... c6 {[%clk 0:15:03.8]} 2. d4 {[%clk 0:15:04.2]}
2... d5 {[%clk 0:15:07.6]} 3. e5 {[%clk 0:15:08.6]} 3... Bf5 {[%clk 0:15:09.8]}
4. Bd3 {[%clk 0:15:11]} 4... Bxd3 {[%clk 0:15:13.1]} 5. Qxd3 {[%clk 0:15:15.9]}
5... e6 {[%clk 0:15:17.4]} 6. c3 {[%clk 0:15:20.3]} 6... c5 {[%clk 0:15:21.3]}
7. Nf3 {[%clk 0:15:25]} 7... Nc6 {[%clk 0:15:25.3]} 8. O-O {[%clk 0:15:26.2]}
8... Nge7 {[%clk 0:15:26.2]} 9. Be3 {[%clk 0:15:26.2]} 9... cxd4 {[%clk
0:15:29.3]} 10. cxd4 {[%clk 0:15:30]} 10... Nf5 {[%clk 0:15:32.5]} 11. Nc3
{[%clk 0:15:28.5]} 11... Bb4 {[%clk 0:15:32.3]} 12. a3 {[%clk 0:15:30.8]} 12...
Bxc3 {[%clk 0:15:35.8]} 13. bxc3 {[%clk 0:15:35.7]} 13... O-O {[%clk 0:15:36.4]}
14. Rab1 {[%clk 0:15:37.7]} 14... b6 {[%clk 0:15:38]} 15. Ng5 {[%clk 0:13:48]}
15... h6 {[%clk 0:15:26.6]} 16. Nf3 {[%clk 0:13:10.5]} 16... Na5 {[%clk
0:14:54.4]} 17. Nd2 {[%clk 0:13:03.5]} 17... Nc6 {[%clk 0:14:29.8]} 18. f4
{[%clk 0:12:38.7]} 18... Re8 {[%clk 0:13:44.7]} 19. Rf3 {[%clk 0:12:29]} 19...
Nh4 {[%clk 0:13:30.6]} 20. Rh3 {[%clk 0:12:26.5]} 20... Nf5 {[%clk 0:13:18]} 21.
g4 {[%clk 0:12:10.1]} 21... Nxe3 {[%clk 0:13:19]} 22. Qxe3 {[%clk 0:12:15]}
22... Rf8 {[%clk 0:12:48.8]} 23. Qd3 {[%clk 0:12:02.9]} 23... f6 {[%clk
0:12:43]} 24. Rf1 {[%clk 0:11:19.5]} 24... fxe5 {[%clk 0:12:40.7]} 25. dxe5
{[%clk 0:11:24.4]} 25... Rf7 {[%clk 0:12:25]} 26. Nb3 {[%clk 0:09:35.1]} 26...
Qf8 {[%clk 0:12:22.2]} 27. Qe3 {[%clk 0:09:34.1]} 27... Qxa3 {[%clk 0:11:57.5]}
28. Nd4 {[%clk 0:09:08]} 28... Nxd4 {[%clk 0:11:57.3]} 29. Qxd4 {[%clk
0:09:12.9]} 29... Qc5 {[%clk 0:11:52.8]} 30. Qxc5 {[%clk 0:09:04.3]} 30... bxc5
{[%clk 0:11:56.6]} 31. Rhf3 {[%clk 0:08:58.6]} 31... Raf8 {[%clk 0:11:56.6]} 32.
Kg2 {[%clk 0:08:56.8]} 32... g5 {[%clk 0:11:52.8]} 33. f5 {[%clk 0:08:57.8]}
33... exf5 {[%clk 0:11:56.3]} 34. gxf5 {[%clk 0:08:45]} 34... a5 {[%clk
0:11:49.7]} 35. f6 {[%clk 0:08:45.1]} 35... a4 {[%clk 0:11:44.4]} 36. Ra1 {[%clk
0:08:47.7]} 36... Re8 {[%clk 0:11:47.7]} 37. Rf5 {[%clk 0:08:28.7]} 37... Kh7
{[%clk 0:11:46.2]} 38. Re1 {[%clk 0:07:50.8]} 38... Kg6 {[%clk 0:11:48.7]} 39.
Rf2 {[%clk 0:07:55]} 39... a3 {[%clk 0:11:50.9]} 40. Ra2 {[%clk 0:07:58.6]}
40... Rxf6 {[%clk 0:11:50.7]} 41. Rxa3 {[%clk 0:07:57.5]} 41... Rfe6 {[%clk
0:11:51.4]} 42. Ra5 {[%clk 0:07:54.9]} 42... Rxe5 {[%clk 0:11:53.3]} 43. Rxe5
{[%clk 0:07:58.2]} 43... Rxe5 {[%clk 0:11:57.2]} 44. Rxc5 {[%clk 0:08:02.9]}
44... Kf5 {[%clk 0:11:59.4]} 45. Kf3 {[%clk 0:08:05.4]} 45... g4+ {[%clk
0:12:02.5]} 46. Kf2 {[%clk 0:08:07.3]} 46... Ke4 {[%clk 0:12:06]} 47. Rc6 {[%clk
0:08:09.7]} 47... h5 {[%clk 0:12:05.8]} 48. c4 {[%clk 0:08:10.8]} 48... dxc4
{[%clk 0:12:05.5]} 49. Rxc4+ {[%clk 0:08:14.8]} 49... Kd3 {[%clk 0:12:09.1]} 50.
Rc6 {[%clk 0:08:14.3]} 50... Re2+ {[%clk 0:12:10.6]} 51. Kg3 {[%clk 0:08:18.3]}
51... Ke3 {[%clk 0:12:10.3]} 52. Re6+ {[%clk 0:08:19.8]} 52... Kd2 {[%clk
0:12:13.3]} 1/2-1/2

[Event "Live Chess"]
[Site "Chess.com"]
[Date "2023.09.16"]
[Round "-"]
[White "Mariafernanda2805"]
[Black "Corveloni_Ma"]
[Result "0-1"]
[WhiteElo "998"]
[BlackElo "1387"]
[TimeControl "900+5"]
[EndTime "7:48:29 PDT"]
[Termination "Corveloni_Ma venceu por xeque-mate"]

1. e4 {[%clk 0:15:00.9]} 1... c6 {[%clk 0:15:03.8]} 2. Bc4 {[%clk 0:15:03.3]}
2... d5 {[%clk 0:15:07.5]} 3. exd5 {[%clk 0:15:05.9]} 3... cxd5 {[%clk
0:15:11.3]} 4. Bd3 {[%clk 0:15:08.8]} 4... Nf6 {[%clk 0:15:11.6]} 5. Nf3 {[%clk
0:15:09.4]} 5... e6 {[%clk 0:15:11]} 6. O-O {[%clk 0:15:10]} 6... Be7 {[%clk
0:15:15.1]} 7. Nc3 {[%clk 0:15:09.8]} 7... O-O {[%clk 0:15:18.5]} 8. b3 {[%clk
0:15:08.7]} 8... Nc6 {[%clk 0:15:21]} 9. Bb2 {[%clk 0:15:10.5]} 9... e5 {[%clk
0:15:13.4]} 10. Bb5 {[%clk 0:14:57.2]} 10... e4 {[%clk 0:15:00.1]} 11. Nh4
{[%clk 0:14:50.2]} 11... Nd4 {[%clk 0:14:58.4]} 12. Ba4 {[%clk 0:14:47.8]} 12...
Bd7 {[%clk 0:14:40.3]} 13. g3 {[%clk 0:14:39.4]} 13... b5 {[%clk 0:14:33.9]} 14.
Bxb5 {[%clk 0:14:28.8]} 14... Nxb5 {[%clk 0:14:33.4]} 15. Nxb5 {[%clk
0:14:31.2]} 15... Bxb5 {[%clk 0:14:37.4]} 16. d3 {[%clk 0:14:28]} 16... exd3
{[%clk 0:13:39.8]} 17. cxd3 {[%clk 0:14:27.3]} 17... Qd6 {[%clk 0:13:15.9]} 18.
Rc1 {[%clk 0:14:16.9]} 18... Rac8 {[%clk 0:13:11.8]} 19. Qd2 {[%clk 0:14:14.5]}
19... Qb4 {[%clk 0:12:57.4]} 20. Bc3 {[%clk 0:14:05.9]} 20... Qd6 {[%clk
0:11:55.9]} 21. Bb2 {[%clk 0:13:58]} 21... Nd7 {[%clk 0:11:43.2]} 22. Rxc8
{[%clk 0:13:40.4]} 22... Rxc8 {[%clk 0:11:45.4]} 23. Rc1 {[%clk 0:13:42.8]}
23... Rxc1+ {[%clk 0:11:36.9]} 24. Qxc1 {[%clk 0:13:45]} 24... h6 {[%clk
0:11:27.9]} 25. d4 {[%clk 0:13:42.1]} 25... Bxh4 {[%clk 0:11:10.6]} 26. gxh4
{[%clk 0:13:42.6]} 26... Qg6+ {[%clk 0:11:14.5]} 27. Kh1 {[%clk 0:13:42.3]}
27... Qe4+ {[%clk 0:11:17.5]} 28. Kg1 {[%clk 0:13:46]} 28... Qxh4 {[%clk
0:11:11.3]} 29. Qc8+ {[%clk 0:13:47]} 29... Nf8 {[%clk 0:11:08.4]} 30. Qc5
{[%clk 0:13:47.3]} 30... Qg4+ {[%clk 0:11:07.2]} 31. Kh1 {[%clk 0:13:48.8]}
31... Qd1+ {[%clk 0:11:06.7]} 32. Kg2 {[%clk 0:13:51.5]} 32... Qf1+ {[%clk
0:11:00]} 33. Kf3 {[%clk 0:13:53.7]} 33... Be2+ {[%clk 0:10:57.7]} 34. Ke3
{[%clk 0:13:54.4]} 34... Bg4 {[%clk 0:10:26]} 35. Ba3 {[%clk 0:13:52.6]} 35...
Qe2+ {[%clk 0:10:26.4]} 36. Kf4 {[%clk 0:13:55.5]} 36... Ne6+ {[%clk 0:10:19]}
37. Kg3 {[%clk 0:13:56.8]} 37... Nxc5 {[%clk 0:10:20.5]} 38. Bxc5 {[%clk
0:13:57]} 38... Qf3+ {[%clk 0:10:24.4]} 39. Kh4 {[%clk 0:13:59.5]} 39... g5#
{[%clk 0:10:27.4]} 0-1

[Event "Live Chess"]
[Site "Chess.com"]
[Date "2023.09.16"]
[Round "-"]
[White "VitorEMS"]
[Black "Sabadin21"]
[Result "1-0"]
[WhiteElo "735"]
[BlackElo "870"]
[TimeControl "900+5"]
[EndTime "7:48:50 PDT"]
[Termination "VitorEMS venceu por desistência"]

1. e4 {[%clk 0:15:00.8]} 1... e5 {[%clk 0:15:04.3]} 2. Nf3 {[%clk 0:15:03.4]}
2... Nc6 {[%clk 0:15:06]} 3. Bc4 {[%clk 0:15:04]} 3... Bc5 {[%clk 0:15:08.1]} 4.
O-O {[%clk 0:15:06.1]} 4... Nf6 {[%clk 0:15:12.4]} 5. d3 {[%clk 0:15:07.7]} 5...
O-O {[%clk 0:15:16.7]} 6. Nc3 {[%clk 0:15:10]} 6... d6 {[%clk 0:15:14.8]} 7. Be3
{[%clk 0:15:07.3]} 7... Bxe3 {[%clk 0:15:16.7]} 8. fxe3 {[%clk 0:15:08.4]} 8...
Qe7 {[%clk 0:15:20.7]} 9. d4 {[%clk 0:15:01.8]} 9... exd4 {[%clk 0:15:22.9]} 10.
exd4 {[%clk 0:15:04.9]} 10... Be6 {[%clk 0:15:27.3]} 11. Bxe6 {[%clk 0:15:06.5]}
11... Qxe6 {[%clk 0:15:31]} 12. d5 {[%clk 0:15:09.2]} 12... Qd7 {[%clk
0:15:18.8]} 13. dxc6 {[%clk 0:15:08.9]} 13... Qxc6 {[%clk 0:15:23.2]} 14. Nd5
{[%clk 0:15:06.7]} 14... Nxe4 {[%clk 0:15:23.6]} 15. Ne7+ {[%clk 0:15:05.9]} 1-0

[Event "Live Chess"]
[Site "Chess.com"]
[Date "2023.09.16"]
[Round "-"]
[White "Ruanfelipe2014"]
[Black "Rafael-2021"]
[Result "1-0"]
[WhiteElo "1010"]
[BlackElo "1002"]
[TimeControl "900+5"]
[EndTime "7:49:15 PDT"]
[Termination "Ruanfelipe2014 venceu por desistência"]

1. e4 {[%clk 0:15:02]} 1... e5 {[%clk 0:15:02.7]} 2. Nf3 {[%clk 0:15:01.4]} 2...
Nc6 {[%clk 0:15:05.3]} 3. Bc4 {[%clk 0:14:59.9]} 3... d6 {[%clk 0:15:08.2]} 4.
d3 {[%clk 0:14:56]} 4... Bg4 {[%clk 0:15:10.8]} 5. h3 {[%clk 0:14:53.1]} 5...
Bh5 {[%clk 0:15:13.8]} 6. g4 {[%clk 0:14:48.3]} 6... Bg6 {[%clk 0:15:16.3]} 7.
h4 {[%clk 0:14:49.2]} 7... h5 {[%clk 0:15:15.9]} 8. g5 {[%clk 0:14:40.4]} 8...
f6 {[%clk 0:15:13]} 9. gxf6 {[%clk 0:14:42.9]} 9... Nxf6 {[%clk 0:15:16.7]} 10.
Nc3 {[%clk 0:14:39.3]} 10... Be7 {[%clk 0:15:18.9]} 11. Be3 {[%clk 0:14:19.4]}
11... Qd7 {[%clk 0:15:20.6]} 12. Bb5 {[%clk 0:14:13.3]} 12... O-O-O {[%clk
0:15:17.3]} 13. Bxa7 {[%clk 0:14:09.1]} 13... d5 {[%clk 0:15:00.3]} 14. exd5
{[%clk 0:14:05.7]} 14... Nxd5 {[%clk 0:15:02.5]} 15. Nxe5 {[%clk 0:13:56.5]}
15... Nxc3 {[%clk 0:14:51.4]} 16. bxc3 {[%clk 0:13:54.9]} 16... Qd6 {[%clk
0:14:51.6]} 17. Nxc6 {[%clk 0:13:50]} 17... bxc6 {[%clk 0:14:53.5]} 18. Ba6+
{[%clk 0:13:49.8]} 18... Kd7 {[%clk 0:14:52.5]} 19. Rg1 {[%clk 0:13:46.2]} 19...
Qe6+ {[%clk 0:14:48.5]} 20. Qe2 {[%clk 0:13:37.1]} 20... Qxe2+ {[%clk
0:14:50.7]} 21. Kxe2 {[%clk 0:13:38.3]} 21... Bf5 {[%clk 0:14:44.2]} 22. Rxg7
{[%clk 0:13:36.5]} 22... Rhg8 {[%clk 0:14:47.4]} 23. Rf7 {[%clk 0:13:34.5]}
23... Be6 {[%clk 0:14:43.6]} 24. Rf4 {[%clk 0:13:30.6]} 24... Bd6 {[%clk
0:14:41.6]} 25. Rd4 {[%clk 0:13:29.5]} 25... Ke8 {[%clk 0:14:29.9]} 26. Re4
{[%clk 0:13:04]} 26... Ke7 {[%clk 0:14:24.7]} 27. Bc4 {[%clk 0:13:00.5]} 27...
Rg6 {[%clk 0:14:26.4]} 28. Be3 {[%clk 0:12:49.3]} 28... Rb8 {[%clk 0:14:20.3]}
29. Bg5+ {[%clk 0:12:44.7]} 29... Kd7 {[%clk 0:14:17]} 30. Rf1 {[%clk
0:12:26.1]} 30... Bxc4 {[%clk 0:14:18.7]} 31. dxc4 {[%clk 0:12:26.5]} 31... Re6
{[%clk 0:14:20.8]} 32. Rxe6 {[%clk 0:12:22.6]} 32... Kxe6 {[%clk 0:14:24.5]} 33.
Re1 {[%clk 0:12:21.2]} 33... Rb2 {[%clk 0:14:26.3]} 34. Kd3+ {[%clk 0:12:20]}
34... Kd7 {[%clk 0:14:29.3]} 35. Rd1 {[%clk 0:12:18]} 35... Rxa2 {[%clk
0:14:31.1]} 36. Ke4 {[%clk 0:12:17.2]} 36... Kc8 {[%clk 0:14:28.1]} 37. Rd2
{[%clk 0:12:09.7]} 37... Ra5 {[%clk 0:14:24.7]} 38. f4 {[%clk 0:12:05.8]} 38...
Ba3 {[%clk 0:14:22.7]} 39. Rd8+ {[%clk 0:11:48]} 39... Kb7 {[%clk 0:14:25.6]}
40. f5 {[%clk 0:11:46.2]} 40... Bd6 {[%clk 0:14:25.2]} 41. f6 {[%clk 0:11:46.3]}
41... Ra8 {[%clk 0:14:22.5]} 42. Rxa8 {[%clk 0:11:44.7]} 42... Kxa8 {[%clk
0:14:25.7]} 43. f7 {[%clk 0:11:43.4]} 43... Kb8 {[%clk 0:14:28.8]} 44. Kf5
{[%clk 0:11:32.7]} 44... Kc8 {[%clk 0:14:31.3]} 45. Bh6 {[%clk 0:11:34.6]} 45...
Kd7 {[%clk 0:14:33.4]} 46. f8=Q {[%clk 0:11:35.7]} 46... Bxf8 {[%clk 0:14:36.8]}
47. Bxf8 {[%clk 0:11:38.8]} 47... c5 {[%clk 0:14:35.4]} 48. Bxc5 {[%clk
0:11:40.8]} 48... Kc6 {[%clk 0:14:38.6]} 49. Bb4 {[%clk 0:11:41.4]} 1-0

[Event "Live Chess"]
[Site "Chess.com"]
[Date "2023.09.16"]
[Round "-"]
[White "guilhermemazza"]
[Black "AnaHelenaAulicino"]
[Result "0-1"]
[WhiteElo "431"]
[BlackElo "634"]
[TimeControl "900+5"]
[EndTime "7:52:19 PDT"]
[Termination "AnaHelenaAulicino venceu por xeque-mate"]

1. e4 {[%clk 0:15:03.2]} 1... e5 {[%clk 0:15:03.1]} 2. d3 {[%clk 0:15:05.8]}
2... Nf6 {[%clk 0:15:05.8]} 3. Bg5 {[%clk 0:15:07.8]} 3... Bc5 {[%clk
0:15:05.2]} 4. Bxf6 {[%clk 0:15:09.6]} 4... Qxf6 {[%clk 0:15:07.2]} 5. Qf3
{[%clk 0:15:06.5]} 5... Qb6 {[%clk 0:14:56.7]} 6. Nc3 {[%clk 0:15:00.6]} 6...
Qxb2 {[%clk 0:14:58.4]} 7. Rb1 {[%clk 0:15:02.2]} 7... Qxc2 {[%clk 0:14:58.6]}
8. Nd5 {[%clk 0:15:01]} 8... Qxb1+ {[%clk 0:14:58.3]} 9. Ke2 {[%clk 0:15:03.3]}
9... O-O {[%clk 0:14:57.4]} 10. Nxc7 {[%clk 0:15:06.2]} 10... Nc6 {[%clk
0:14:54.1]} 11. Nxa8 {[%clk 0:15:09.6]} 11... Nd4+ {[%clk 0:14:59]} 12. Kd2
{[%clk 0:15:07.7]} 12... Nxf3+ {[%clk 0:15:02]} 13. gxf3 {[%clk 0:15:10.2]}
13... Qxf1 {[%clk 0:15:00.5]} 14. Ne2 {[%clk 0:15:11.8]} 14... Qxh1 {[%clk
0:15:01.7]} 15. Ng3 {[%clk 0:14:29.4]} 15... Qxf3 {[%clk 0:14:59.6]} 16. Nf5
{[%clk 0:14:25.1]} 16... Qxf2+ {[%clk 0:15:00.2]} 17. Kc3 {[%clk 0:14:24.4]}
17... Qxa2 {[%clk 0:14:58.2]} 18. Ne7+ {[%clk 0:14:15.8]} 18... Bxe7 {[%clk
0:14:59]} 19. Nb6 {[%clk 0:14:18]} 19... axb6 {[%clk 0:15:01.8]} 20. h4 {[%clk
0:14:21.1]} 20... Bxh4 {[%clk 0:15:03.1]} 21. d4 {[%clk 0:14:24.3]} 21... exd4+
{[%clk 0:15:05.1]} 22. Kxd4 {[%clk 0:14:28.4]} 22... Qb2+ {[%clk 0:15:07.9]} 23.
Kd3 {[%clk 0:14:30]} 23... Bg5 {[%clk 0:15:02.3]} 24. e5 {[%clk 0:14:13.5]}
24... Qd2+ {[%clk 0:15:02.2]} 25. Kc4 {[%clk 0:14:14.8]} 25... Qf4+ {[%clk
0:15:01.9]} 26. Kd5 {[%clk 0:14:17.6]} 26... Qf5 {[%clk 0:14:58.4]} 27. Kc4
{[%clk 0:14:11.5]} 27... Qxe5 {[%clk 0:15:00.4]} 28. Kb4 {[%clk 0:14:14.9]}
28... Qb5+ {[%clk 0:15:01.2]} 29. Kxb5 {[%clk 0:14:18]} 29... Be3 {[%clk
0:14:57.2]} 30. Kc4 {[%clk 0:14:19.5]} 30... f5 {[%clk 0:14:59.2]} 31. Kd3
{[%clk 0:14:22.6]} 31... f4 {[%clk 0:15:00.7]} 32. Ke4 {[%clk 0:14:26.8]} 32...
g5 {[%clk 0:15:00.4]} 33. Kf3 {[%clk 0:14:30.2]} 33... Re8 {[%clk 0:14:59.1]}
34. Kg4 {[%clk 0:14:32.5]} 34... Bc1 {[%clk 0:15:01.1]} 35. Kxg5 {[%clk
0:14:35.4]} 35... Rf8 {[%clk 0:15:03.4]} 36. Kh6 {[%clk 0:14:37.9]} 36... f3+
{[%clk 0:15:05.5]} 37. Kh5 {[%clk 0:14:41.3]} 37... f2 {[%clk 0:15:08.7]} 38.
Kg4 {[%clk 0:14:45.3]} 38... f1=Q {[%clk 0:15:12.4]} 39. Kh5 {[%clk 0:14:48.9]}
39... Qg1 {[%clk 0:15:10.1]} 40. Kh4 {[%clk 0:14:50.9]} 40... Rf4+ {[%clk
0:15:09.9]} 41. Kh5 {[%clk 0:14:53.6]} 41... Rf2 {[%clk 0:14:59.6]} 42. Kh4
{[%clk 0:14:56.4]} 42... Rh2# {[%clk 0:15:03.5]} 0-1